lending/lending_fUSD_20251021
["ID","MTS","AMOUNT","RATE_DAILY","PERIOD"]
[391976295,1761048642972,-191.010954,0.00023288,7]
[391976296,1761048642981,-151.0,0.00023288,7]
[391976297,1761048642990,-207.225089,0.00023288,7]
[391976298,1761048643000,-153.057602,0.00023288,7]
[391976299,1761048643010,-207.225089,0.00023288,7]
[391976300,1761048643019,-207.225089,0.00023288,7]
[391976301,1761048643029,-207.225089,0.00023288,7]
[391976302,1761048643038,-207.225089,0.00023288,7]
[391976303,1761048643047,-207.225089,0.00023288,7]
[391976304,1761048643057,-151.0,0.00023288,7]
[391976305,1761048643066,-207.225089,0.00023288,7]
[391976306,1761048643075,-207.225089,0.00023288,7]
[391976308,1761048643084,-207.225089,0.00023288,7]
[391976310,1761048643093,-207.225089,0.00023288,7]
[391976311,1761048643103,-207.225089,0.00023288,7]
[391976313,1761048643112,-207.225089,0.00023288,7]
[391976314,1761048643122,-207.225089,0.00023288,7]
[391976315,1761048643131,-207.225089,0.00023288,7]
[391976316,1761048643140,-207.225089,0.00023288,7]
[391976317,1761048643149,-207.225089,0.00023288,7]
[391976318,1761048643159,-207.225089,0.00023288,7]
[391976319,1761048643168,-207.225089,0.00023288,7]
[391976320,1761048643177,-207.225089,0.00023288,7]
[391976321,1761048643186,-207.225081,0.00023288,7]
[391976322,1761048643195,-151.0,0.00023288,7]
[391976323,1761048643204,-151.0,0.00023288,7]
[391976324,1761048643214,-151.0,0.00023288,7]
[391976325,1761048643224,-151.0,0.00023288,7]
[391976326,1761048643233,-151.0,0.00023288,7]
[391976327,1761048643242,-209.823897,0.00023288,7]
[391976328,1761048643251,-204.127932,0.00023288,7]
[391976329,1761048643261,-204.127932,0.00023288,7]
[391976330,1761048643271,-204.127932,0.00023288,7]
[391976331,1761048643281,-151.0,0.00023288,7]
[391976332,1761048643291,-151.0,0.00023288,7]
[391976333,1761048643300,-151.0,0.00023288,7]
[391976334,1761048643309,-190.055921,0.00023288,7]
[391976335,1761048643318,-204.127932,0.00023288,7]
[391976336,1761048643327,-204.127932,0.00023288,7]
[391976337,1761048643337,-204.127932,0.00023288,7]
[391976338,1761048643346,-204.127932,0.00023288,7]
[391976339,1761048643355,-204.127932,0.00023288,7]
[391976340,1761048643365,-204.127932,0.00023288,7]
[391976341,1761048643374,-204.127932,0.00023288,7]
[391976342,1761048643383,-204.127932,0.00023288,7]
[391976343,1761048643392,-204.127932,0.00023288,7]
[391976344,1761048643401,-204.127932,0.00023288,7]
[391976345,1761048643410,-204.127932,0.00023288,7]
[391976346,1761048643420,-151.0,0.00023288,7]
[391976347,1761048643429,-151.0,0.00023288,7]
[391976348,1761048643439,-204.127932,0.00023288,7]
[391976349,1761048643448,-151.0,0.00023288,7]
[391976350,1761048643457,-204.127932,0.00023288,7]
[391976351,1761048643467,-151.0,0.00023288,7]
[391976352,1761048643476,-204.127932,0.00023288,7]
[391976353,1761048643486,-151.0,0.00023288,7]
[391976354,1761048643499,-204.127932,0.00023288,7]
[391976355,1761048643509,-204.127932,0.00023288,7]
[391976356,1761048643518,-151.0,0.00023288,7]
[391976357,1761048643527,-154.488056,0.00023288,7]
[391976358,1761048643538,-204.127938,0.00023288,7]
[391976359,1761048643548,-151.0,0.00023288,7]
[391976360,1761048643557,-151.0,0.00023288,7]
[391976361,1761048643567,-151.0,0.00023288,7]
[391976362,1761048643577,-151.0,0.00023288,7]
[391976363,1761048643587,-151.0,0.00023288,7]
[391976364,1761048643596,-151.0,0.00023288,7]
[391976365,1761048643605,-151.0,0.00023288,7]
[391976366,1761048643615,-151.0,0.00023288,7]
[391976367,1761048643626,-234.447809,0.00023288,7]
[391976368,1761048643635,-152.120135,0.00023288,7]
[391976369,1761048643644,-151.0,0.00023288,7]
[391976370,1761048643653,-151.0,0.00023288,7]
[391976371,1761048643663,-151.0,0.00023288,7]
[391976372,1761048643672,-300.570075,0.00023288,7]
[391976373,1761048643682,-151.0,0.00023288,7]
[391976374,1761048643691,-151.0,0.00023288,7]
[391976375,1761048643700,-151.0,0.00023288,7]
[391976376,1761048643709,-151.0,0.00023288,7]
[391976377,1761048643719,-151.0,0.00023288,7]
[391976378,1761048643728,-151.0,0.00023288,7]
[391976379,1761048643738,-151.0,0.00023288,7]
[391976380,1761048643747,-151.0,0.00023288,7]
[391976381,1761048643756,-151.0,0.00023288,7]
[391976382,1761048643766,-151.0,0.00023288,7]
[391976383,1761048643775,-151.0,0.00023288,7]
[391976384,1761048643784,-151.0,0.00023288,7]
[391976385,1761048643794,-298.805927,0.00023288,7]
[391976386,1761048643803,-196.675895,0.00023288,7]
[391976387,1761048643813,-196.675895,0.00023288,7]
[391976388,1761048643822,-151.0,0.00023288,7]
[391976389,1761048643833,-196.675895,0.00023288,7]
[391976390,1761048643843,-196.675895,0.00023288,7]
[391976391,1761048643856,-151.0,0.00023288,7]
[391976392,1761048643867,-196.675895,0.00023288,7]
[391976393,1761048643877,-151.0,0.00023288,7]
[391976394,1761048643890,-196.675895,0.00023288,7]
[391976395,1761048643901,-196.675895,0.00023288,7]
[391976396,1761048643914,-196.675895,0.00023288,7]
[391976397,1761048643926,-196.675895,0.00023288,7]
[391976398,1761048643937,-196.675895,0.00023288,7]
[391976399,1761048643947,-151.0,0.00023288,7]
[391976400,1761048643956,-196.675895,0.00023288,7]
[391976401,1761048643966,-151.0,0.00023288,7]
[391976402,1761048643976,-196.675895,0.00023288,7]
[391976403,1761048643986,-151.0,0.00023288,7]
[391976404,1761048643996,-196.675895,0.00023288,7]
[391976405,1761048644006,-151.0,0.00023288,7]
[391976406,1761048644017,-196.675895,0.00023288,7]
[391976407,1761048644027,-151.0,0.00023288,7]
[391976408,1761048644038,-154.725983,0.00023288,7]
[391976409,1761048644047,-196.675895,0.00023288,7]
[391976410,1761048644058,-196.675895,0.00023288,7]
[391976411,1761048644067,-196.675895,0.00023288,7]
[391976412,1761048644077,-196.675895,0.00023288,7]
[391976413,1761048644088,-196.675895,0.00023288,7]
[391976414,1761048644099,-196.675899,0.00023288,7]
[391976415,1761048644109,-291.16742,0.00023288,7]
[391976416,1761048644118,-151.0,0.00023288,7]
[391976417,1761048644128,-151.0,0.00023288,7]
[391976418,1761048644139,-151.0,0.00023288,7]
[391976419,1761048644149,-151.0,0.00023288,7]
[391976420,1761048644159,-151.0,0.00023288,7]
[391976421,1761048644168,-151.0,0.00023288,7]
[391976422,1761048644186,-151.0,0.00023288,7]
[391976423,1761048644196,-206.007068,0.00023288,7]
[391976424,1761048644205,-151.0,0.00023288,7]
[391976425,1761048644214,-753.447165,0.00023288,7]
[391976426,1761048644223,-155.817147,0.00023288,7]
[391976427,1761048644232,-753.447165,0.00023288,7]
[391976428,1761048644242,-753.447165,0.00023288,7]
[391976429,1761048644251,-753.447165,0.00023288,7]
[391976430,1761048644260,-151.0,0.00023288,7]
[391976431,1761048644270,-151.0,0.00023288,7]
[391976432,1761048644279,-151.0,0.00023288,7]
[391976433,1761048644288,-753.447165,0.00023288,7]
[391976434,1761048644298,-753.447165,0.00023288,7]
[391976435,1761048644307,-151.0,0.00023288,7]
[391976436,1761048644316,-151.0,0.00023288,7]
[391976437,1761048644326,-753.447165,0.00023288,7]
[391976438,1761048644335,-753.447165,0.00023288,7]
[391976439,1761048644345,-151.0,0.00023288,7]
[391976440,1761048644355,-151.0,0.00023288,7]
[391976441,1761048644365,-182.322601,0.00023288,7]
[391976442,1761048644374,-753.447165,0.00023288,7]
[391976443,1761048644384,-153.091812,0.00023288,7]
[391976444,1761048644394,-151.794255,0.00023288,7]
[391976445,1761048644403,-753.447165,0.00023288,7]
[391976446,1761048644413,-753.447165,0.00023288,7]
[391976447,1761048644422,-753.447165,0.00023288,7]
[391976448,1761048644432,-233.167923,0.00023288,7]
[391976449,1761048644442,-753.447165,0.00023288,7]
[391976450,1761048644451,-753.447165,0.00023288,7]
[391976451,1761048644460,-753.447165,0.00023288,7]
[391976452,1761048644469,-233.167923,0.00023288,7]
[391976453,1761048644478,-753.447165,0.00023288,7]
[391976454,1761048644490,-233.167923,0.00023288,7]
[391976455,1761048644501,-753.447165,0.00023288,7]
[391976456,1761048644510,-151.0,0.00023288,7]
[391976457,1761048644519,-753.447165,0.00023288,7]
[391976458,1761048644528,-233.167923,0.00023288,7]
[391976459,1761048644537,-151.0,0.00023288,7]
[391976460,1761048644546,-233.167923,0.00023288,7]
[391976461,1761048644555,-151.0,0.00023288,7]
[391976462,1761048644564,-753.447165,0.00023288,7]
[391976463,1761048644573,-753.447174,0.00023288,7]
[391976464,1761048644582,-233.167923,0.00023288,7]
[391976465,1761048644590,-155.031419,0.00023288,7]
[391976466,1761048644601,-233.167923,0.00023288,7]
[391976467,1761048644610,-233.167923,0.00023288,7]
[391976468,1761048644619,-233.167923,0.00023288,7]
[391976469,1761048644629,-233.167923,0.00023288,7]
[391976470,1761048644638,-233.167923,0.00023288,7]
[391976471,1761048644647,-233.167923,0.00023288,7]
[391976472,1761048644657,-233.167923,0.00023288,7]
[391976473,1761048644666,-233.167923,0.00023288,7]
[391976474,1761048644675,-233.167923,0.00023288,7]
[391976475,1761048644684,-151.0,0.00023288,7]
[391976476,1761048644694,-233.167923,0.00023288,7]
[391976477,1761048644703,-233.167923,0.00023288,7]
[391976478,1761048644712,-233.167923,0.00023288,7]
[391976479,1761048644722,-233.167923,0.00023288,7]
[391976480,1761048644731,-233.167917,0.00023288,7]
[391976481,1761048644741,-151.0,0.00023288,7]
[391976482,1761048644750,-151.0,0.00023288,7]
[391976483,1761048644759,-177.154163,0.00023288,7]
[391976484,1761048644768,-151.0,0.00023288,7]
[391976485,1761048644778,-151.0,0.00023288,7]
[391976486,1761048644787,-154.91259,0.00023288,7]
[391976487,1761048644796,-151.0,0.00023288,7]
[391976488,1761048644953,-151.0,0.00023288,7]
[391976489,1761048644964,-151.0,0.00023288,7]
[391976490,1761048644973,-151.0,0.00023288,7]
[391976491,1761048644982,-151.0,0.00023288,7]
[391976492,1761048644991,-151.0,0.00023288,7]
[391976493,1761048645000,-151.0,0.00023288,7]
[391976494,1761048645010,-151.0,0.00023288,7]
[391976495,1761048645020,-151.0,0.00023288,7]
[391976496,1761048645030,-174.453982,0.00023288,7]
[391976497,1761048645040,-151.0,0.00023288,7]
[391976498,1761048645052,-151.0,0.00023288,7]
[391976499,1761048645062,-151.0,0.00023288,7]
[391976500,1761048645072,-151.0,0.00023288,7]
[391976501,1761048645081,-291.279283,0.00023288,7]
[391976502,1761048645090,-155.141669,0.00023288,7]
[391976503,1761048645100,-151.0,0.00023288,7]
[391976504,1761048645110,-257.522864,0.00023288,7]
[391976505,1761048645121,-151.0,0.00023288,7]
[391976506,1761048645131,-151.0,0.00023288,7]
[391976507,1761048645142,-151.0,0.00023288,7]
[391976508,1761048645152,-151.0,0.00023288,7]
[391976509,1761048645162,-151.0,0.00023288,7]
[391976510,1761048645172,-151.0,0.00023288,7]
[391976511,1761048645183,-151.0,0.00023288,7]
[391976512,1761048645193,-151.0,0.00023288,7]
[391976513,1761048645202,-151.0,0.00023288,7]
[391976514,1761048645212,-151.0,0.00023288,7]
[391976515,1761048645221,-151.0,0.00023288,7]
[391976516,1761048645230,-151.0,0.00023288,7]
[391976517,1761048645241,-151.0,0.00023288,7]
[391976518,1761048645251,-151.0,0.00023288,7]
[391976519,1761048645260,-151.0,0.00023288,7]
[391976520,1761048645269,-151.0,0.00023288,7]
[391976521,1761048645279,-151.0,0.00023288,7]
[391976522,1761048645287,-157.664249,0.00023288,7]
[391976523,1761048645297,-184.959441,0.00023288,7]
[391976524,1761048645306,-151.0,0.00023288,7]
[391976526,1761048645315,-151.0,0.00023288,7]
[391976527,1761048645324,-151.0,0.00023288,7]
[391976528,1761048645333,-151.0,0.00023288,7]
[391976529,1761048645342,-151.0,0.00023288,7]
[391976530,1761048645351,-151.0,0.00023288,7]
[391976532,1761048645361,-151.913664,0.00023288,7]
[391976534,1761048645370,-151.0,0.00023288,7]
[391976536,1761048645379,-151.0,0.00023288,7]
[391976537,1761048645388,-151.0,0.00023288,7]
[391976538,1761048645397,-151.0,0.00023288,7]
[391976539,1761048645407,-151.0,0.00023288,7]
[391976540,1761048645416,-151.0,0.00023288,7]
[391976541,1761048645426,-151.0,0.00023288,7]
[391976542,1761048645435,-151.0,0.00023288,7]
[391976543,1761048645445,-151.0,0.00023288,7]
[391976544,1761048645455,-285.85845,0.00023288,7]
[391976545,1761048645465,-151.0,0.00023288,7]
[391976546,1761048645475,-151.0,0.00023288,7]
[391976547,1761048645487,-151.0,0.00023288,7]
[391976548,1761048645500,-151.0,0.00023288,7]
[391976550,1761048645509,-282.68845,0.00023288,7]
[391976552,1761048645519,-151.0,0.00023288,7]
[391976553,1761048645530,-151.0,0.00023288,7]
[391976557,1761048645540,-223.308239,0.00023288,7]
[391976558,1761048645549,-211.056353,0.00023288,7]
[391976559,1761048645558,-211.056353,0.00023288,7]
[391976560,1761048645569,-211.056353,0.00023288,7]
[391976561,1761048645578,-211.056353,0.00023288,7]
[391976562,1761048645587,-211.056353,0.00023288,7]
[391976564,1761048645598,-211.056353,0.00023288,7]
[391976565,1761048645608,-211.056353,0.00023288,7]
[391976566,1761048645617,-211.056353,0.00023288,7]
[391976567,1761048645627,-211.056353,0.00023288,7]
[391976568,1761048645636,-211.056353,0.00023288,7]
[391976569,1761048645646,-211.056353,0.00023288,7]
[391976570,1761048645656,-211.056353,0.00023288,7]
[391976571,1761048645666,-211.056353,0.00023288,7]
[391976572,1761048645675,-211.056353,0.00023288,7]
[391976573,1761048645684,-211.056353,0.00023288,7]
[391976574,1761048645694,-211.056353,0.00023288,7]
[391976575,1761048645703,-211.056353,0.00023288,7]
[391976576,1761048645712,-211.056353,0.00023288,7]
[391976577,1761048645722,-211.056353,0.00023288,7]
[391976578,1761048645732,-211.056362,0.00023288,7]
[391976579,1761048645742,-151.0,0.00023288,7]
[391976580,1761048645751,-151.0,0.00023288,7]
[391976581,1761048645760,-151.0,0.00023288,7]
[391976582,1761048645770,-151.0,0.00023288,7]
[391976583,1761048645779,-151.0,0.00023288,7]
[391976584,1761048645788,-207.31173,0.00023288,7]
[391976585,1761048645797,-151.0,0.00023288,7]
[391976586,1761048645806,-164.605312,0.00023288,7]
[391976587,1761048645815,-151.0,0.00023288,7]
[391976588,1761048645824,-151.0,0.00023288,7]
[391976589,1761048645834,-152.138358,0.00023288,7]
[391976590,1761048645843,-151.0,0.00023288,7]
[391976591,1761048645853,-151.0,0.00023288,7]
[391976592,1761048645862,-151.0,0.00023288,7]
[391976593,1761048645872,-151.0,0.00023288,7]
[391976594,1761048645882,-151.0,0.00023288,7]
[391976595,1761048645892,-151.0,0.00023288,7]
[391976596,1761048645901,-151.0,0.00023288,7]
[391976597,1761048645911,-151.0,0.00023288,7]
[391976598,1761048645920,-151.0,0.00023288,7]
[391976599,1761048645929,-151.0,0.00023288,7]
[391976600,1761048645939,-151.0,0.00023288,7]
[391976601,1761048645948,-288.468798,0.00023288,7]
[391976602,1761048645957,-151.0,0.00023288,7]
[391976603,1761048645966,-151.0,0.00023288,7]
[391976604,1761048645975,-151.0,0.00023288,7]
[391976605,1761048645987,-151.0,0.00023288,7]
[391976606,1761048645997,-151.0,0.00023288,7]
[391976607,1761048646006,-151.0,0.00023288,7]
[391976608,1761048646016,-151.0,0.00023288,7]
[391976609,1761048646026,-151.0,0.00023288,7]
[391976610,1761048646035,-151.0,0.00023288,7]
[391976611,1761048646044,-151.0,0.00023288,7]
[391976612,1761048646053,-247.08601354,0.00023311,2]
[391976613,1761048646063,-1000.0,0.00023354,2]
[391976614,1761048646073,-2000.0,0.000234,2]
[391976615,1761048646082,-423.14,0.00023836,2]
[391976616,1761048646091,-2548.0,0.00023839,2]
[391976617,1761048646100,-1696.0,0.00023839,2]
[391976618,1761048646110,-300.0,0.00024065,2]
[391976619,1761048646119,-300.98,0.00024065,2]
[391976620,1761048646129,-1200.2,0.00024065,2]
[391976621,1761048646138,-300.0,0.00024065,2]
[391976622,1761048646147,-178.54,0.00024065,2]
[391976623,1761048646156,-1403.25,0.00024079,2]
[391976624,1761048646166,-695.92,0.00024079,2]
[391976625,1761048646175,-474.66,0.00024079,2]
[391976626,1761048646184,-475.23,0.00024079,2]
[391976627,1761048646194,-1390.87,0.00024083,2]
[391976628,1761048646204,-695.92,0.00024083,2]
[391976629,1761048646213,-475.23,0.00024083,2]
[391976630,1761048646223,-475.23,0.00024083,2]
[391976631,1761048646232,-475.23,0.00024274,2]
[391976632,1761048646241,-944.87,0.00024301,2]
[391976633,1761048646251,-161.94133354,0.00024387,2]
[391976634,1761048646260,-219.51,0.00024658,2]
[391976635,1761048646270,-151.0,0.00024658,7]
[391976636,1761048646279,-151.0,0.00024658,7]
[391976637,1761048646289,-151.0,0.00024658,7]
[391976638,1761048646298,-193.058165,0.00024658,7]
[391976639,1761048646307,-328.25024238,0.00024745,2]
[391976640,1761048646317,-476.03091061,0.000248,3]
[391976641,1761048646326,-266658.749481,0.000248,3]
[391976642,1761048646336,-1200.2,0.00024887,2]
[391976643,1761048646345,-336.34,0.00024887,2]
[391976644,1761048646356,-414.05,0.00024887,2]
[391976645,1761048646365,-1200.2,0.00024887,2]
[391976646,1761048646375,-1200.2,0.00024887,2]
[391976647,1761048646384,-570.75,0.00024887,2]
[391976648,1761048646393,-174.519063,0.000249,3]
[391976649,1761048646402,-124890.423723,0.000249,3]
[391976650,1761048646412,-274.71,0.00024924,2]
[391976651,1761048646421,-7686.88349425,0.00025,2]
[391976652,1761048646431,-10099.13,0.000251,7]
[391976653,1761048646441,-1009.37060474,0.000251,2]
[391976654,1761048646451,-182.23101693,0.00025199,3]
[391976655,1761048646460,-152.714608,0.00025342,2]
[391976656,1761048646469,-174.519063,0.00025342,2]
[391976657,1761048646478,-151.576202,0.00025342,2]
[391976658,1761048646488,-152.695199,0.00025342,2]
[391976659,1761048646501,-150.273361,0.00025342,2]
[391976660,1761048646512,-154.314848,0.00025342,2]
[391976661,1761048646527,-174.519063,0.00025474,3]
[391976662,1761048646546,-150.273361,0.00025474,3]
[391976663,1761048646555,-301.68,0.0002571,2]
[391976664,1761048646564,-276.26,0.0002571,2]
[391976665,1761048646574,-446.7,0.0002571,2]
[391976666,1761048646583,-414.05,0.0002571,2]
[391976667,1761048646593,-546.8,0.0002571,2]
[391976668,1761048646603,-547.23,0.0002571,2]
[391976669,1761048646612,-1093.93,0.0002571,2]
[391976670,1761048646622,-545.94,0.0002571,2]
[391976671,1761048646631,-176.22,0.00025713,2]
[391976672,1761048646641,-414.05,0.00025713,2]
[391976673,1761048646650,-414.05,0.00025713,2]
[391976674,1761048646659,-150.0,0.00025713,2]
[391976675,1761048646669,-301.48,0.00025718,2]
[391976676,1761048646678,-150.0,0.00025914,2]
[391976677,1761048646688,-152.714608,0.00026047,3]
[391976678,1761048646697,-174.519063,0.00026047,3]
[391976679,1761048646707,-151.576202,0.00026047,3]
[391976680,1761048646717,-150.273361,0.00026047,3]
[391976681,1761048646726,-176.22,0.00026356,2]
[391976682,1761048646735,-334.17,0.00026356,2]
[391976683,1761048646744,-168.4,0.00026532,2]
[391976684,1761048646753,-168.4,0.00026532,2]
[391976685,1761048646763,-168.4,0.00026532,2]
[391976686,1761048646772,-547.23,0.00026535,2]
[391976687,1761048646781,-168.4,0.00026535,2]
[391976688,1761048646791,-176.37138619,0.00026536,7]
[391976689,1761048646800,-547.23,0.0002654,2]
[391976690,1761048646809,-150.0,0.0002654,2]
[391976691,1761048646819,-202.64,0.0002654,2]
[391976692,1761048646829,-152.714608,0.00026621,3]
[391976693,1761048646839,-174.519063,0.00026621,3]
[391976694,1761048646849,-151.576202,0.00026621,3]
[391976695,1761048646858,-152.695199,0.00026621,3]
[391976696,1761048646868,-150.273361,0.00026621,3]
[391976697,1761048646877,-154.314848,0.00026621,3]
[391976698,1761048646888,-243.97,0.00026676,2]
[391976699,1761048646898,-2548.0,0.00026839,2]
[391976700,1761048646907,-17022.50500233,0.00027,2]
[391976701,1761048646917,-21079.94360358,0.00027,2]
[391976702,1761048646926,-1018.24846008,0.00027,2]
[391976703,1761048646935,-4197.53809718,0.00027,2]
[391976704,1761048646944,-530.0,0.00027,2]
[391976705,1761048646954,-2000.0,0.000271,2]
[391976706,1761048646963,-152.714608,0.00027195,3]
[391976707,1761048646972,-174.519063,0.00027195,3]
[391976708,1761048646982,-151.576202,0.00027195,3]
[391976709,1761048646991,-152.695199,0.00027195,3]
[391976710,1761048647001,-150.273361,0.00027195,3]
[391976711,1761048647011,-154.314848,0.00027195,3]
[391976712,1761048647020,-226.54,0.00027389,2]
[391976713,1761048647029,-267.11,0.00027389,2]
[391976714,1761048647039,-274.32,0.00027389,2]
[391976715,1761048647048,-194.57,0.00027389,2]
[391976716,1761048647058,-547.09,0.00027389,2]
[391976717,1761048647067,-4046.53121796,0.0002739,2]
[391976718,1761048647076,-7993.52072175,0.0002739,2]
[391976719,1761048647085,-3190.76649896,0.0002739,2]
[391976720,1761048647095,-324.19,0.00027396,2]
[391976721,1761048647105,-500.0,0.00027397,60]
[391976722,1761048647115,-1424.0,0.00027397,2]
[391976723,1761048647124,-217.22,0.00027397,30]
[391976724,1761048647133,-510.82,0.00027397,2]
[391976725,1761048647142,-1500.0,0.00027397,16]
[391976726,1761048647152,-219.51,0.00027397,2]
[391976727,1761048647162,-300.0,0.00027397,2]
[391976728,1761048647171,-1122.91,0.000274,7]
[391976729,1761048647180,-5655.34,0.000274,2]
[391976730,1761048647189,-10099.13,0.000274,7]
[391976731,1761048647198,-968.44,0.000274,7]
[391976732,1761048647208,-500.0,0.00027452,60]
[391976733,1761048647218,-197.92181982,0.000275,2]
[391976734,1761048647227,-540.67197336,0.000275,2]
[391976735,1761048647237,-500.0,0.00027507,60]
[391976736,1761048647246,-500.0,0.00027561,60]
[391976737,1761048647255,-500.0,0.00027616,60]
[391976738,1761048647265,-500.0,0.00027671,60]
[391976739,1761048647275,-199.0,0.00027671,7]
[391976740,1761048647283,-500.0,0.00027726,60]
[391976741,1761048647293,-1972.0,0.00027753,2]
[391976742,1761048647302,-500.0,0.00027781,60]
[391976743,1761048647311,-500.0,0.00027835,60]
[391976744,1761048647320,-500.0,0.0002789,60]
[391976745,1761048647330,-500.0,0.00027945,60]
[391976746,1761048647339,-199.0,0.00027945,8]
[391976747,1761048647348,-500.0,0.00028,60]
[391976748,1761048647358,-70192.02532122,0.00028,2]
[391976749,1761048647367,-1400.09736695,0.00028,30]
[391976750,1761048647377,-50062.44100942,0.00028,2]
[391976751,1761048647386,-160.0,0.00028,2]
[391976752,1761048647395,-328.25024238,0.00028027,2]
[391976753,1761048647405,-13557.11,0.00028027,10]
[391976754,1761048647414,-409.54072096,0.00028055,60]
[391976755,1761048647424,-199.0,0.00028219,9]
[391976756,1761048647434,-152.0,0.00028285,3]
[391976757,1761048647444,-559.06,0.00028438,2]
[391976758,1761048647454,-199.0,0.00028493,10]
[391976759,1761048647463,-5655.34,0.000285,2]
[391976760,1761048647473,-968.44,0.000285,7]
[391976761,1761048647482,-25000.0,0.00028519,10]
[391976762,1761048647495,-13090.40290178,0.0002875,2]
[391976763,1761048647504,-199.0,0.00028767,11]
[391976764,1761048647658,-152.714608,0.0002879,2]
[391976765,1761048647667,-174.519063,0.0002879,2]
[391976766,1761048647677,-151.576202,0.0002879,2]
[391976767,1761048647686,-152.695199,0.0002879,2]
[391976768,1761048647695,-150.273361,0.0002879,2]
[391976769,1761048647704,-154.314848,0.0002879,2]
[391976770,1761048647713,-1122.91,0.000288,7]
[391976771,1761048647723,-474.98,0.00028853,2]
[391976772,1761048647732,-472.32,0.00028885,2]
[391976773,1761048647742,-10099.13,0.000289,7]
[391976774,1761048647751,-24692.71238203,0.00029,2]
[391976775,1761048647760,-475.82771539,0.00029,30]
[391976776,1761048647769,-199.0,0.00029041,12]
[391976777,1761048647779,-183.14,0.00029198,2]
[391976778,1761048647789,-1854.796932,0.00029272,2]
[391976779,1761048647798,-318.59212418,0.00029315,13]
[391976780,1761048647808,-795.35,0.00029315,2]
[391976781,1761048647817,-230879.68854038,0.000295,2]
[391976782,1761048647826,-500.0,0.0002951,7]
[391976783,1761048647836,-500.0,0.0002951,7]
[391976784,1761048647845,-500.0,0.0002951,7]
[391976785,1761048647856,-500.0,0.0002951,7]
[391976786,1761048647865,-500.0,0.0002951,7]
[391976787,1761048647875,-500.0,0.0002951,7]
[391976788,1761048647884,-900.0,0.0002951,7]
[391976789,1761048647893,-500.0,0.0002951,7]
[391976790,1761048647904,-500.0,0.0002951,7]
[391976791,1761048647915,-500.0,0.0002951,7]
[391976792,1761048647926,-500.0,0.0002951,7]
[391976793,1761048647935,-500.0,0.0002951,7]
[391976794,1761048647944,-500.0,0.0002951,7]
[391976795,1761048647955,-500.0,0.0002951,7]
[391976796,1761048647969,-500.0,0.0002951,7]
[391976797,1761048647979,-500.0,0.0002951,7]
[391976798,1761048647988,-500.0,0.0002951,7]
[391976799,1761048647998,-500.0,0.0002951,7]
[391976800,1761048648008,-500.0,0.0002951,7]
[391976801,1761048648017,-674.02941388,0.0002951,7]
[391976802,1761048648026,-600.76563148,0.0002951,7]
[391976803,1761048648036,-500.0,0.0002951,7]
[391976804,1761048648045,-500.0,0.0002951,7]
[391976805,1761048648055,-500.0,0.0002951,7]
[391976806,1761048648064,-500.0,0.0002951,7]
[391976807,1761048648074,-500.0,0.0002951,7]